[Event "Titled Tuesday Blitz May 2 Late 2023"]
[White "Maze, Sebastien"]
[Black "Quesada Perez, Yasser"]
[WhiteFideId "613762"]
[BlackFideId "3509362"]
[WhiteElo "2462"]
[BlackElo "2496"]
[Result "1/2-1/2"]
[Round "05"]
[TimeControl "180+2"]
[Date "2023.05.02"]
[WhiteClock "0:00:05"]
[BlackClock "0:00:22"]

1. e4 {[%clk 0:02:59]}  d5 {[%clk 0:02:59]} 2. exd5 {[%clk 0:02:56]}  Nf6 {[%clk 0:03:00]} 3. d4 {[%clk 0:02:55]}  Bg4 {[%clk 0:02:59]} 4. Be2 {[%clk 0:02:50]}  Bxe2 {[%clk 0:02:59]} 5. Qxe2 {[%clk 0:02:50]}  Qxd5 {[%clk 0:03:00]} 6. Nf3 {[%clk 0:02:50]}  e6 {[%clk 0:02:59]} 7. c4 {[%clk 0:02:48]}  Qe4 {[%clk 0:02:58]} 8. Nc3 {[%clk 0:02:46]}  Qxe2+ {[%clk 0:02:53]} 9. Kxe2 {[%clk 0:02:47]}  Nc6 {[%clk 0:02:52]} 10. Bf4 {[%clk 0:02:32]}  O-O-O {[%clk 0:02:52]} 11. Rhd1 {[%clk 0:02:32]}  Bb4 {[%clk 0:02:42]} 12. Rac1 {[%clk 0:02:17]}  Rd7 {[%clk 0:02:32]} 13. a3 {[%clk 0:01:34]}  Bxc3 {[%clk 0:02:30]} 14. Rxc3 {[%clk 0:01:34]}  Rhd8 {[%clk 0:02:28]} 15. Rcd3 {[%clk 0:01:33]}  a5 {[%clk 0:02:26]} 16. b3 {[%clk 0:01:30]}  Nh5 {[%clk 0:02:15]} 17. Bg5 {[%clk 0:01:25]}  f6 {[%clk 0:02:15]} 18. Be3 {[%clk 0:01:25]}  g5 {[%clk 0:02:14]} 19. h3 {[%clk 0:01:13]}  h6 {[%clk 0:02:11]} 20. g4 {[%clk 0:01:12]}  Nf4+ {[%clk 0:01:57]} 21. Bxf4 {[%clk 0:01:11]}  gxf4 {[%clk 0:01:58]} 22. R1d2 {[%clk 0:01:02]}  b6 {[%clk 0:01:54]} 23. Rd1 {[%clk 0:00:50]}  Kb7 {[%clk 0:01:52]} 24. R1d2 {[%clk 0:00:50]}  Ka6 {[%clk 0:01:31]} 25. Rd1 {[%clk 0:00:50]}  a4 {[%clk 0:01:04]} 26. b4 {[%clk 0:00:48]}  b5 {[%clk 0:01:04]} 27. cxb5+ {[%clk 0:00:47]}  Kxb5 {[%clk 0:01:04]} 28. Rc1 {[%clk 0:00:48]}  Nxd4+ {[%clk 0:01:04]} 29. Nxd4+ {[%clk 0:00:46]}  Rxd4 {[%clk 0:01:04]} 30. Rxd4 {[%clk 0:00:44]}  Rxd4 {[%clk 0:01:05]} 31. Rxc7 {[%clk 0:00:44]}  e5 {[%clk 0:01:03]} 32. Rc5+ {[%clk 0:00:26]}  Kb6 {[%clk 0:01:03]} 33. f3 {[%clk 0:00:26]}  h5 {[%clk 0:00:48]} 34. gxh5 {[%clk 0:00:25]}  Rd7 {[%clk 0:00:48]} 35. Ra5 {[%clk 0:00:21]}  Rh7 {[%clk 0:00:48]} 36. Rxa4 {[%clk 0:00:21]}  Rxh5 {[%clk 0:00:49]} 37. Ra8 {[%clk 0:00:21]}  Rxh3 {[%clk 0:00:49]} 38. a4 {[%clk 0:00:21]}  Rh2+ {[%clk 0:00:48]} 39. Kd3 {[%clk 0:00:21]}  Rf2 {[%clk 0:00:48]} 40. Ke4 {[%clk 0:00:21]}  Re2+ {[%clk 0:00:48]} 41. Kf5 {[%clk 0:00:20]}  Re3 {[%clk 0:00:46]} 42. Kxf6 {[%clk 0:00:20]}  e4 {[%clk 0:00:45]} 43. fxe4 {[%clk 0:00:19]}  Rxe4 {[%clk 0:00:46]} 44. b5 {[%clk 0:00:10]}  f3 {[%clk 0:00:46]} 45. Kg5 {[%clk 0:00:10]}  Re5+ {[%clk 0:00:24]} 46. Kg4 {[%clk 0:00:07]}  f2 {[%clk 0:00:24]} 47. Ra6+ {[%clk 0:00:07]}  Kb7 {[%clk 0:00:23]} 48. Rf6 {[%clk 0:00:07]}  Re4+ {[%clk 0:00:21]} 49. Kg3 {[%clk 0:00:07]}  Rxa4 {[%clk 0:00:20]} 50. Kxf2 {[%clk 0:00:07]}  Rb4 {[%clk 0:00:21]} 51. Ke3 {[%clk 0:00:07]}  Rxb5 {[%clk 0:00:21]} 52. Kd4 {[%clk 0:00:07]}  Rb4+ {[%clk 0:00:22]} 53. Kc3 {[%clk 0:00:05]} 1/2-1/2


[Site "https://www.chess.com"]

[Event "Titled Tuesday Blitz May 2 Late 2023"]
[White "Koziorowicz, Michal"]
[Black "Remizov, Yaroslav"]
[WhiteFideId "21809194"]
[BlackFideId "34134015"]
[WhiteElo "2255"]
[BlackElo "2412"]
[Result "1-0"]
[Round "05"]
[TimeControl "180+2"]
[Date "2023.05.02"]
[WhiteClock "0:00:28"]
[BlackClock "0:00:15"]

1. e4 {[%clk 0:03:00]}  c5 {[%clk 0:02:59]} 2. Nf3 {[%clk 0:03:00]}  e6 {[%clk 0:02:59]} 3. g3 {[%clk 0:03:00]}  Nc6 {[%clk 0:02:57]} 4. Bg2 {[%clk 0:02:59]}  g6 {[%clk 0:02:57]} 5. O-O {[%clk 0:02:59]}  Bg7 {[%clk 0:02:57]} 6. Re1 {[%clk 0:02:59]}  Nge7 {[%clk 0:02:57]} 7. c3 {[%clk 0:02:57]}  d5 {[%clk 0:02:37]} 8. exd5 {[%clk 0:02:57]}  Nxd5 {[%clk 0:02:35]} 9. d4 {[%clk 0:02:56]}  cxd4 {[%clk 0:02:35]} 10. Nxd4 {[%clk 0:02:56]}  Nxd4 {[%clk 0:02:35]} 11. cxd4 {[%clk 0:02:57]}  O-O {[%clk 0:02:34]} 12. Nc3 {[%clk 0:02:57]}  Nb6 {[%clk 0:02:29]} 13. Be3 {[%clk 0:02:33]}  Nc4 {[%clk 0:02:28]} 14. Qb3 {[%clk 0:02:33]}  Nxe3 {[%clk 0:02:28]} 15. fxe3 {[%clk 0:02:33]}  h5 {[%clk 0:02:21]} 16. Rac1 {[%clk 0:02:28]}  h4 {[%clk 0:02:16]} 17. Ne4 {[%clk 0:02:26]}  Rb8 {[%clk 0:02:10]} 18. Rf1 {[%clk 0:02:21]}  b6 {[%clk 0:01:59]} 19. Rf4 {[%clk 0:01:58]}  hxg3 {[%clk 0:01:53]} 20. hxg3 {[%clk 0:01:58]}  Bb7 {[%clk 0:01:52]} 21. Kf2 {[%clk 0:01:51]}  g5 {[%clk 0:01:41]} 22. Rg4 {[%clk 0:01:45]}  Bd5 {[%clk 0:01:41]} 23. Qd1 {[%clk 0:00:51]}  f5 {[%clk 0:01:40]} 24. Kg1 {[%clk 0:00:51]}  fxg4 {[%clk 0:01:39]} 25. Qxg4 {[%clk 0:00:52]}  Rc8 {[%clk 0:01:35]} 26. Nc3 {[%clk 0:00:42]}  Bxg2 {[%clk 0:01:29]} 27. Qxe6+ {[%clk 0:00:41]}  Rf7 {[%clk 0:01:30]} 28. Kxg2 {[%clk 0:00:40]}  Qe8 {[%clk 0:01:30]} 29. Qd5 {[%clk 0:00:33]}  Rd8 {[%clk 0:01:22]} 30. Qxg5 {[%clk 0:00:31]}  Qe7 {[%clk 0:01:15]} 31. Qxe7 {[%clk 0:00:25]}  Rxe7 {[%clk 0:01:16]} 32. Nd1 {[%clk 0:00:26]}  Bh6 {[%clk 0:00:55]} 33. Rc3 {[%clk 0:00:26]}  Rdd7 {[%clk 0:00:54]} 34. Kf3 {[%clk 0:00:22]}  Rf7+ {[%clk 0:00:53]} 35. Ke2 {[%clk 0:00:22]}  Rc7 {[%clk 0:00:53]} 36. e4 {[%clk 0:00:21]}  Rxc3 {[%clk 0:00:51]} 37. bxc3 {[%clk 0:00:22]}  Kf8 {[%clk 0:00:47]} 38. Nf2 {[%clk 0:00:22]}  Bd2 {[%clk 0:00:44]} 39. Nd1 {[%clk 0:00:16]}  Bc1 {[%clk 0:00:44]} 40. e5 {[%clk 0:00:17]}  Ke7 {[%clk 0:00:43]} 41. Nf2 {[%clk 0:00:16]}  Ke6 {[%clk 0:00:34]} 42. Ne4 {[%clk 0:00:16]}  Kd5 {[%clk 0:00:29]} 43. Nf6+ {[%clk 0:00:15]}  Kc4 {[%clk 0:00:24]} 44. Ne4 {[%clk 0:00:15]}  Bb2 {[%clk 0:00:21]} 45. Ke3 {[%clk 0:00:16]}  b5 {[%clk 0:00:17]} 46. Nd6+ {[%clk 0:00:16]}  Kxc3 {[%clk 0:00:17]} 47. Nxf7 {[%clk 0:00:16]}  Kc4 {[%clk 0:00:13]} 48. Nd6+ {[%clk 0:00:15]}  Kd5 {[%clk 0:00:13]} 49. Nxb5 {[%clk 0:00:15]}  a5 {[%clk 0:00:13]} 50. Kd3 {[%clk 0:00:14]}  a4 {[%clk 0:00:13]} 51. Nc3+ {[%clk 0:00:15]}  Kc6 {[%clk 0:00:12]} 52. Nxa4 {[%clk 0:00:15]}  Bc1 {[%clk 0:00:13]} 53. Nc3 {[%clk 0:00:15]}  Bg5 {[%clk 0:00:11]} 54. Kc4 {[%clk 0:00:16]}  Be3 {[%clk 0:00:11]} 55. d5+ {[%clk 0:00:17]}  Kb6 {[%clk 0:00:11]} 56. Ne4 {[%clk 0:00:18]}  Bc1 {[%clk 0:00:11]} 57. e6 {[%clk 0:00:18]}  Kc7 {[%clk 0:00:11]} 58. g4 {[%clk 0:00:19]}  Kd8 {[%clk 0:00:11]} 59. a4 {[%clk 0:00:20]}  Ke7 {[%clk 0:00:11]} 60. a5 {[%clk 0:00:20]}  Be3 {[%clk 0:00:11]} 61. a6 {[%clk 0:00:21]}  Kf8 {[%clk 0:00:12]} 62. Kb5 {[%clk 0:00:22]}  Ke7 {[%clk 0:00:12]} 63. Kc6 {[%clk 0:00:23]}  Kf8 {[%clk 0:00:12]} 64. Kb7 {[%clk 0:00:24]}  Ke7 {[%clk 0:00:12]} 65. a7 {[%clk 0:00:25]}  Bxa7 {[%clk 0:00:13]} 66. Ka8 {[%clk 0:00:25]}  Kf8 {[%clk 0:00:13]} 67. Kxa7 {[%clk 0:00:26]}  Kg7 {[%clk 0:00:13]} 68. Kb7 {[%clk 0:00:27]}  Kg6 {[%clk 0:00:13]} 69. Kc7 {[%clk 0:00:27]}  Kg7 {[%clk 0:00:13]} 70. d6 {[%clk 0:00:28]}  Kg6 {[%clk 0:00:13]} 71. d7 {[%clk 0:00:29]}  Kh6 {[%clk 0:00:14]} 72. d8=Q {[%clk 0:00:30]}  Kg7 {[%clk 0:00:14]} 73. Qf6+ {[%clk 0:00:31]}  Kg8 {[%clk 0:00:15]} 74. Kd7 {[%clk 0:00:26]}  Kh7 {[%clk 0:00:15]} 75. Ng5+ {[%clk 0:00:26]}  Kg8 {[%clk 0:00:16]} 76. Qf7+ {[%clk 0:00:27]}  Kh8 {[%clk 0:00:15]} 77. Qf8# {[%clk 0:00:28]} 1-0


[Site "https://www.chess.com"]

[Event "Titled Tuesday Blitz May 2 Late 2023"]
[White "Seemann, Jakub"]
[Black "Grigorov, Grigor"]
[WhiteFideId "21874697"]
[BlackFideId "2907313"]
[WhiteElo "2364"]
[BlackElo "2510"]
[Result "1-0"]
[Round "05"]
[TimeControl "180+2"]
[Date "2023.05.02"]
[WhiteClock "0:01:24"]
[BlackClock "0:00:43"]

1. d4 {[%clk 0:03:00]}  Nf6 {[%clk 0:02:59]} 2. c4 {[%clk 0:02:58]}  e6 {[%clk 0:03:00]} 3. Nf3 {[%clk 0:02:57]}  b6 {[%clk 0:02:59]} 4. g3 {[%clk 0:02:55]}  Bb7 {[%clk 0:02:59]} 5. Bg2 {[%clk 0:02:55]}  Be7 {[%clk 0:03:00]} 6. O-O {[%clk 0:02:55]}  O-O {[%clk 0:03:00]} 7. Nc3 {[%clk 0:02:53]}  Ne4 {[%clk 0:03:00]} 8. Bd2 {[%clk 0:02:53]}  Bf6 {[%clk 0:02:59]} 9. Qc2 {[%clk 0:02:35]}  Nxd2 {[%clk 0:02:59]} 10. Qxd2 {[%clk 0:02:34]}  d6 {[%clk 0:02:59]} 11. e4 {[%clk 0:02:32]}  Nd7 {[%clk 0:02:58]} 12. Rfe1 {[%clk 0:02:31]}  g6 {[%clk 0:02:57]} 13. Rad1 {[%clk 0:02:32]}  Bg7 {[%clk 0:02:57]} 14. h4 {[%clk 0:02:31]}  Qe7 {[%clk 0:02:54]} 15. h5 {[%clk 0:02:31]}  Rfd8 {[%clk 0:02:48]} 16. h6 {[%clk 0:02:31]}  Bf8 {[%clk 0:02:45]} 17. Qe3 {[%clk 0:02:02]}  Nf6 {[%clk 0:02:41]} 18. Qf4 {[%clk 0:01:55]}  Kh8 {[%clk 0:02:24]} 19. e5 {[%clk 0:01:48]}  Nh5 {[%clk 0:01:50]} 20. Qe3 {[%clk 0:01:46]}  dxe5 {[%clk 0:01:24]} 21. Nxe5 {[%clk 0:01:47]}  Bxg2 {[%clk 0:01:20]} 22. Kxg2 {[%clk 0:01:47]}  Qe8 {[%clk 0:01:11]} 23. g4 {[%clk 0:01:30]}  f6 {[%clk 0:00:52]} 24. gxh5 {[%clk 0:01:28]}  fxe5 {[%clk 0:00:52]} 25. Qxe5+ {[%clk 0:01:27]}  Kg8 {[%clk 0:00:52]} 26. Ne4 {[%clk 0:01:27]}  Be7 {[%clk 0:00:43]} 27. Qg7# {[%clk 0:01:24]} 1-0


[Site "https://www.chess.com"]

[Event "Titled Tuesday Blitz May 2 Late 2023"]
[White "Mortazavi, Ali"]
[Black "Krzyzanowski, Marcin"]
[WhiteFideId "401323"]
[BlackFideId "1132199"]
[WhiteElo "2339"]
[BlackElo "2471"]
[Result "1-0"]
[Round "05"]
[TimeControl "180+2"]
[Date "2023.05.02"]
[WhiteClock "0:00:15"]
[BlackClock "0:00:03"]

1. Nf3 {[%clk 0:02:28]}  c5 {[%clk 0:02:58]} 2. e4 {[%clk 0:02:25]}  Nc6 {[%clk 0:02:57]} 3. d3 {[%clk 0:02:22]}  e5 {[%clk 0:02:56]} 4. g3 {[%clk 0:02:22]}  d6 {[%clk 0:02:56]} 5. Bg2 {[%clk 0:02:23]}  g6 {[%clk 0:02:56]} 6. O-O {[%clk 0:02:24]}  Bg7 {[%clk 0:02:57]} 7. a3 {[%clk 0:02:25]}  Nge7 {[%clk 0:02:58]} 8. b4 {[%clk 0:02:21]}  cxb4 {[%clk 0:02:58]} 9. axb4 {[%clk 0:02:21]}  Nxb4 {[%clk 0:02:59]} 10. Ba3 {[%clk 0:02:22]}  Nbc6 {[%clk 0:03:00]} 11. Nbd2 {[%clk 0:02:21]}  Be6 {[%clk 0:02:51]} 12. Ng5 {[%clk 0:02:14]}  O-O {[%clk 0:02:52]} 13. Nxe6 {[%clk 0:02:08]}  fxe6 {[%clk 0:02:52]} 14. Bh3 {[%clk 0:02:07]}  Qd7 {[%clk 0:02:47]} 15. Rb1 {[%clk 0:02:06]}  Kh8 {[%clk 0:02:46]} 16. Nc4 {[%clk 0:01:48]}  d5 {[%clk 0:02:45]} 17. exd5 {[%clk 0:01:43]}  Qxd5 {[%clk 0:02:36]} 18. Rxb7 {[%clk 0:01:18]}  Qd8 {[%clk 0:02:13]} 19. Bg2 {[%clk 0:00:57]}  Rf5 {[%clk 0:02:07]} 20. Bxe7 {[%clk 0:00:54]}  Nxe7 {[%clk 0:02:04]} 21. Rxe7 {[%clk 0:00:54]}  Qxe7 {[%clk 0:02:04]} 22. Bxa8 {[%clk 0:00:54]}  a5 {[%clk 0:02:03]} 23. Be4 {[%clk 0:00:53]}  Rf8 {[%clk 0:02:03]} 24. Nxa5 {[%clk 0:00:53]}  Qf6 {[%clk 0:02:00]} 25. Qb1 {[%clk 0:00:46]}  h5 {[%clk 0:02:00]} 26. Qd1 {[%clk 0:00:40]}  Bh6 {[%clk 0:01:59]} 27. h4 {[%clk 0:00:39]}  Kg7 {[%clk 0:01:56]} 28. Nc4 {[%clk 0:00:38]}  Kh8 {[%clk 0:01:52]} 29. Qa1 {[%clk 0:00:37]}  Bg7 {[%clk 0:01:52]} 30. Qc1 {[%clk 0:00:35]}  Kh7 {[%clk 0:00:21]} 31. Qg5 {[%clk 0:00:35]}  Qxg5 {[%clk 0:00:11]} 32. hxg5 {[%clk 0:00:35]}  h4 {[%clk 0:00:12]} 33. gxh4 {[%clk 0:00:30]}  Rf4 {[%clk 0:00:12]} 34. h5 {[%clk 0:00:23]}  Rg4+ {[%clk 0:00:11]} 35. Kh2 {[%clk 0:00:23]}  Kg8 {[%clk 0:00:06]} 36. Bxg6 {[%clk 0:00:21]}  e4 {[%clk 0:00:06]} 37. Bxe4 {[%clk 0:00:20]}  Rxg5 {[%clk 0:00:03]} 38. Bg6 {[%clk 0:00:20]}  Kf8 {[%clk 0:00:02]} 39. Rb1 {[%clk 0:00:20]}  Bh6 {[%clk 0:00:02]} 40. Rb7 {[%clk 0:00:20]}  Rg4 {[%clk 0:00:01]} 41. Rf7+ {[%clk 0:00:19]}  Kg8 {[%clk 0:00:02]} 42. Re7 {[%clk 0:00:17]}  Bf4+ {[%clk 0:00:02]} 43. Kh3 {[%clk 0:00:17]}  Rg1 {[%clk 0:00:02]} 44. Rxe6 {[%clk 0:00:16]}  Kg7 {[%clk 0:00:02]} 45. Re7+ {[%clk 0:00:16]}  Kh6 {[%clk 0:00:02]} 46. Re4 {[%clk 0:00:16]}  Bc7 {[%clk 0:00:01]} 47. Ne5 {[%clk 0:00:15]}  Kg5 {[%clk 0:00:01]} 48. Nf3+ {[%clk 0:00:15]}  Kh6 {[%clk 0:00:02]} 49. Nxg1 {[%clk 0:00:16]}  Bd6 {[%clk 0:00:02]} 50. f4 {[%clk 0:00:16]}  Be7 {[%clk 0:00:02]} 51. Re6 {[%clk 0:00:16]}  Bf6 {[%clk 0:00:02]} 52. Be4 {[%clk 0:00:16]}  Kg7 {[%clk 0:00:03]} 53. Rxf6 {[%clk 0:00:16]}  Kh8 {[%clk 0:00:03]} 54. c4 {[%clk 0:00:17]}  Kg7 {[%clk 0:00:04]} 55. Rc6 {[%clk 0:00:17]}  Kf7 {[%clk 0:00:04]} 56. h6 {[%clk 0:00:17]}  Kg8 {[%clk 0:00:04]} 57. Rc7 {[%clk 0:00:17]}  Kh8 {[%clk 0:00:04]} 58. Rd7 {[%clk 0:00:17]}  Kg8 {[%clk 0:00:04]} 59. h7+ {[%clk 0:00:16]}  Kf8 {[%clk 0:00:03]} 60. h8=Q# {[%clk 0:00:15]} 1-0


[Site "https://www.chess.com"]

[Event "Titled Tuesday Blitz May 2 Late 2023"]
[White "Mustafayev, Farid"]
[Black "Szpar, Milosz"]
[WhiteFideId "13408771"]
[BlackFideId "1184989"]
[WhiteElo "2237"]
[BlackElo "2436"]
[Result "1-0"]
[Round "05"]
[TimeControl "180+2"]
[Date "2023.05.02"]
[WhiteClock "0:00:15"]
[BlackClock "0:00:04"]

1. c4 {[%clk 0:02:54]}  e5 {[%clk 0:02:59]} 2. g3 {[%clk 0:02:54]}  Nf6 {[%clk 0:02:56]} 3. Bg2 {[%clk 0:02:55]}  c6 {[%clk 0:02:53]} 4. d4 {[%clk 0:02:53]}  exd4 {[%clk 0:02:53]} 5. Qxd4 {[%clk 0:02:53]}  Na6 {[%clk 0:02:48]} 6. Nf3 {[%clk 0:02:52]}  d5 {[%clk 0:02:35]} 7. O-O {[%clk 0:02:31]}  Nb4 {[%clk 0:02:19]} 8. Na3 {[%clk 0:02:29]}  Be7 {[%clk 0:02:16]} 9. Bf4 {[%clk 0:02:26]}  O-O {[%clk 0:02:13]} 10. Rfd1 {[%clk 0:02:20]}  h6 {[%clk 0:02:03]} 11. Be5 {[%clk 0:02:16]}  Be6 {[%clk 0:01:59]} 12. cxd5 {[%clk 0:02:11]}  Nbxd5 {[%clk 0:01:55]} 13. e4 {[%clk 0:02:09]}  Nb6 {[%clk 0:01:47]} 14. Qc3 {[%clk 0:01:56]}  Qc8 {[%clk 0:01:43]} 15. Nd4 {[%clk 0:01:56]}  Bg4 {[%clk 0:01:31]} 16. f3 {[%clk 0:01:54]}  Be6 {[%clk 0:01:25]} 17. Rac1 {[%clk 0:01:23]}  Re8 {[%clk 0:01:12]} 18. Nb1 {[%clk 0:00:58]}  a5 {[%clk 0:00:55]} 19. b3 {[%clk 0:00:56]}  a4 {[%clk 0:00:54]} 20. Qe3 {[%clk 0:00:55]}  axb3 {[%clk 0:00:49]} 21. axb3 {[%clk 0:00:55]}  Nbd7 {[%clk 0:00:47]} 22. Nxe6 {[%clk 0:00:55]}  Nxe5 {[%clk 0:00:45]} 23. Nd4 {[%clk 0:00:53]}  Bd8 {[%clk 0:00:41]} 24. Nf5 {[%clk 0:00:51]}  Bc7 {[%clk 0:00:34]} 25. h3 {[%clk 0:00:45]}  Qb8 {[%clk 0:00:32]} 26. f4 {[%clk 0:00:44]}  Ng6 {[%clk 0:00:28]} 27. e5 {[%clk 0:00:43]}  Nxe5 {[%clk 0:00:25]} 28. fxe5 {[%clk 0:00:42]}  Rxe5 {[%clk 0:00:25]} 29. Qf3 {[%clk 0:00:40]}  Rxf5 {[%clk 0:00:16]} 30. Qxf5 {[%clk 0:00:40]}  Bxg3 {[%clk 0:00:16]} 31. Nc3 {[%clk 0:00:36]}  Qa7+ {[%clk 0:00:13]} 32. Kh1 {[%clk 0:00:35]}  Re8 {[%clk 0:00:12]} 33. Ne4 {[%clk 0:00:34]}  Nxe4 {[%clk 0:00:10]} 34. Bxe4 {[%clk 0:00:35]}  g6 {[%clk 0:00:10]} 35. Qf3 {[%clk 0:00:33]}  Be5 {[%clk 0:00:03]} 36. Rd7 {[%clk 0:00:33]}  Rf8 {[%clk 0:00:03]} 37. Rf1 {[%clk 0:00:28]}  Qa2 {[%clk 0:00:03]} 38. Rf2 {[%clk 0:00:24]}  Qa1+ {[%clk 0:00:03]} 39. Kg2 {[%clk 0:00:22]}  Qc1 {[%clk 0:00:04]} 40. Rxf7 {[%clk 0:00:18]}  Qg5+ {[%clk 0:00:04]} 41. Kh1 {[%clk 0:00:19]}  Qc1+ {[%clk 0:00:04]} 42. Rf1 {[%clk 0:00:20]}  Qxf1+ {[%clk 0:00:05]} 43. Qxf1 {[%clk 0:00:19]}  Rxf7 {[%clk 0:00:06]} 44. Qc4 {[%clk 0:00:20]}  Kg7 {[%clk 0:00:06]} 45. Qe6 {[%clk 0:00:20]}  Bf6 {[%clk 0:00:06]} 46. Qg4 {[%clk 0:00:20]}  Bg5 {[%clk 0:00:03]} 47. h4 {[%clk 0:00:20]}  Rf4 {[%clk 0:00:03]} 48. Qd7+ {[%clk 0:00:21]}  Rf7 {[%clk 0:00:04]} 49. Qe6 {[%clk 0:00:17]}  Bf6 {[%clk 0:00:04]} 50. Qg4 {[%clk 0:00:17]}  g5 {[%clk 0:00:03]} 51. h5 {[%clk 0:00:13]}  Be5 {[%clk 0:00:03]} 52. Qe6 {[%clk 0:00:13]}  Bf6 {[%clk 0:00:03]} 53. Qf5 {[%clk 0:00:13]}  Kf8 {[%clk 0:00:04]} 54. Qg6 {[%clk 0:00:13]}  Bg7 {[%clk 0:00:04]} 55. Bf5 {[%clk 0:00:13]}  Rf6 {[%clk 0:00:03]} 56. Qh7 {[%clk 0:00:14]}  b5 {[%clk 0:00:03]} 57. Kg2 {[%clk 0:00:14]}  c5 {[%clk 0:00:03]} 58. Bd3 {[%clk 0:00:14]}  c4 {[%clk 0:00:03]} 59. bxc4 {[%clk 0:00:14]}  bxc4 {[%clk 0:00:04]} 60. Bxc4 {[%clk 0:00:15]} 1-0


[Site "https://www.chess.com"]

[Event "Titled Tuesday Blitz May 2 Late 2023"]
[White "Risteski, Emil"]
[Black "Tanenbaum, Zachary"]
[WhiteFideId "15005267"]
[BlackFideId "2060850"]
[WhiteElo "2251"]
[BlackElo "2175"]
[Result "0-1"]
[Round "05"]
[TimeControl "180+2"]
[Date "2023.05.02"]
[WhiteClock "0:00:05"]
[BlackClock "0:00:12"]

1. c4 {[%clk 0:03:00]}  e5 {[%clk 0:02:59]} 2. Nc3 {[%clk 0:03:00]}  Nf6 {[%clk 0:03:00]} 3. Nf3 {[%clk 0:03:00]}  Nc6 {[%clk 0:03:00]} 4. e3 {[%clk 0:03:00]}  Bb4 {[%clk 0:02:59]} 5. Qb3 {[%clk 0:03:01]}  Bxc3 {[%clk 0:02:58]} 6. Qxc3 {[%clk 0:03:01]}  Qe7 {[%clk 0:02:58]} 7. d3 {[%clk 0:03:01]}  d5 {[%clk 0:02:56]} 8. cxd5 {[%clk 0:03:01]}  Nxd5 {[%clk 0:02:57]} 9. Qc2 {[%clk 0:03:02]}  Ndb4 {[%clk 0:02:50]} 10. Qb1 {[%clk 0:02:51]}  Bf5 {[%clk 0:02:47]} 11. a3 {[%clk 0:02:47]}  e4 {[%clk 0:02:39]} 12. axb4 {[%clk 0:02:43]}  exf3 {[%clk 0:02:39]} 13. gxf3 {[%clk 0:02:40]}  Ne5 {[%clk 0:02:31]} 14. Be2 {[%clk 0:02:26]}  Qxb4+ {[%clk 0:02:29]} 15. Bd2 {[%clk 0:02:25]}  Qd6 {[%clk 0:02:00]} 16. e4 {[%clk 0:02:24]}  Bh3 {[%clk 0:01:54]} 17. Rg1 {[%clk 0:02:09]}  O-O {[%clk 0:01:46]} 18. Bc3 {[%clk 0:01:57]}  Ng6 {[%clk 0:01:29]} 19. Qc1 {[%clk 0:01:49]}  Qxh2 {[%clk 0:01:21]} 20. Qg5 {[%clk 0:01:40]}  f6 {[%clk 0:01:17]} 21. Qg3 {[%clk 0:01:39]}  Qxg3 {[%clk 0:01:17]} 22. fxg3 {[%clk 0:01:37]}  Be6 {[%clk 0:01:03]} 23. d4 {[%clk 0:01:27]}  c6 {[%clk 0:01:03]} 24. g4 {[%clk 0:01:22]}  Nf4 {[%clk 0:01:02]} 25. Bf1 {[%clk 0:01:12]}  Rfe8 {[%clk 0:01:00]} 26. Kf2 {[%clk 0:01:06]}  a6 {[%clk 0:00:58]} 27. Bd2 {[%clk 0:00:57]}  g5 {[%clk 0:00:54]} 28. Rh1 {[%clk 0:00:44]}  Ng6 {[%clk 0:00:49]} 29. Be2 {[%clk 0:00:37]}  Rad8 {[%clk 0:00:48]} 30. Be3 {[%clk 0:00:37]}  Kg7 {[%clk 0:00:47]} 31. Rh2 {[%clk 0:00:36]}  Nf4 {[%clk 0:00:30]} 32. Rah1 {[%clk 0:00:30]}  Bg8 {[%clk 0:00:29]} 33. Ra1 {[%clk 0:00:26]}  Rd7 {[%clk 0:00:24]} 34. Bf1 {[%clk 0:00:23]}  Red8 {[%clk 0:00:24]} 35. Rd1 {[%clk 0:00:13]}  Ne6 {[%clk 0:00:24]} 36. Kg3 {[%clk 0:00:05]}  Nxd4 {[%clk 0:00:23]} 37. Rhd2 {[%clk 0:00:05]}  c5 {[%clk 0:00:23]} 38. b4 {[%clk 0:00:04]}  b6 {[%clk 0:00:23]} 39. bxc5 {[%clk 0:00:04]}  bxc5 {[%clk 0:00:24]} 40. Bxa6 {[%clk 0:00:05]}  Bb3 {[%clk 0:00:17]} 41. Rc1 {[%clk 0:00:02]}  Ne6 {[%clk 0:00:15]} 42. Rxd7+ {[%clk 0:00:02]}  Rxd7 {[%clk 0:00:16]} 43. Bxc5 {[%clk 0:00:02]}  Nf4 {[%clk 0:00:14]} 44. Be3 {[%clk 0:00:02]}  Rd6 {[%clk 0:00:14]} 45. Bxf4 {[%clk 0:00:02]}  gxf4+ {[%clk 0:00:13]} 46. Kxf4 {[%clk 0:00:03]}  Rxa6 {[%clk 0:00:13]} 47. Rc7+ {[%clk 0:00:04]}  Kg6 {[%clk 0:00:13]} 48. Rb7 {[%clk 0:00:04]}  Ra3 {[%clk 0:00:12]} 49. Rb6 {[%clk 0:00:04]}  Bd1 {[%clk 0:00:12]} 50. e5 {[%clk 0:00:04]}  Rxf3+ {[%clk 0:00:13]} 51. Ke4 {[%clk 0:00:05]}  Rf1 {[%clk 0:00:12]} 52. exf6 {[%clk 0:00:04]}  Rxf6 {[%clk 0:00:11]} 53. Rb7 {[%clk 0:00:04]}  Bf3+ {[%clk 0:00:11]} 54. Ke3 {[%clk 0:00:05]}  Bxb7 {[%clk 0:00:12]} 0-1


[Site "https://www.chess.com"]